Workbook

Sheet INIZIO
B1: Informazioni sul modello
B2: Questo modello consente di gestire i budget mensili e annuali.
B3: Immettere le ricavi e le spese nelle rispettive tabelle per calcolare l’ammanco o il surplus di cassa per ogni mese e anno.
B4: I grafici sparkline vengono aggiornati automaticamente in ogni tabella.
B5: Nota:
B6: Altre istruzioni sono state fornite nella colonna A nel foglio di lavoro BUDGET PERSONALE. Questo testo è stato nascosto intenzionalmente. Per rimuovere il testo, selezionare la colonna A, quindi scegliere ELIMINA. Per visualizzare il testo, selezionare la colonna A, quindi modificare il colore del carattere.
B7: Per ulteriori informazioni sulle tabelle, premere MAIUSC, quindi F10 in una tabella, selezionare l'opzione TABELLA, quindi selezionare TESTO ALTERNATIVO.

Sheet BUDGET PERSONALE
A1: Creare un budget personale semplice in questo foglio di lavoro. Nelle celle di questa colonna sono disponibili istruzioni utili per l'uso di questo foglio di lavoro. Freccia verso il basso per iniziare.
A2: Il titolo di questo foglio di lavoro è nella cella a destra. Immettere l'anno nella cella Q2. L’istruzione successiva si trova nella cella A4. | B2: BUDGET PERSONALE | Q2: =YEAR(TODAY()) -> 2019
A4: Le etichette si trovano nelle celle da C4 a P4. | C4: RICAVI | D4: GEN | E4: FEB | F4: MAR | G4: APR | H4: MAG | I4: GIU | J4: LUG | K4: AGO | L4: SET | M4: OTT | N4: NOV | O4: DIC | P4: ANNO
A5: Immettere i dettagli nella tabella Entrate a partire dalla cella C5. L'istruzione successiva si trova nella cella A11. | C5: ENTRATE | D5: Gennaio | E5: Febbraio | F5: Marzo | G5: Aprile | H5: Maggio | I5: Giugno | J5: Luglio | K5: Agosto | L5: Settembre | M5: Ottobre | N5: Novembre | O5: Dicembre | P5: Anno | Q5: Sparkline
C6: Stipendi | D6: € 2,600.00 | E6: € 2,600.00 | F6: € 2,600.00 | P6: =SUM(Entrate[[#This Row],[Gennaio]:[Dicembre]]) -> € 7,800.00
C7: Interesse/dividendi | D7: € 649.00 | E7: € 313.00 | F7: € 664.00 | P7: =SUM(Entrate[[#This Row],[Gennaio]:[Dicembre]]) -> € 1,626.00
C8: Varie | D8: € 474.00 | E8: € 643.00 | F8: € 380.00 | P8: =SUM(Entrate[[#This Row],[Gennaio]:[Dicembre]]) -> € 1,497.00
C9: Totale | D9: =SUBTOTAL(109,Entrate[Gennaio]) -> € 3,723.00 | E9: =SUBTOTAL(109,Entrate[Febbraio]) -> € 3,556.00 | F9: =SUBTOTAL(109,Entrate[Marzo]) -> € 3,644.00 | G9: =SUBTOTAL(109,Entrate[Aprile]) -> € 0.00 | H9: =SUBTOTAL(109,Entrate[Maggio]) -> € 0.00 | I9: =SUBTOTAL(109,Entrate[Giugno]) -> € 0.00 | J9: =SUBTOTAL(109,Entrate[Luglio]) -> € 0.00 | K9: =SUBTOTAL(109,Entrate[Agosto]) -> € 0.00 | L9: =SUBTOTAL(109,Entrate[Settembre]) -> € 0.00 | M9: =SUBTOTAL(109,Entrate[Ottobre]) -> € 0.00 | N9: =SUBTOTAL(109,Entrate[Novembre]) -> € 0.00 | O9: =SUBTOTAL(109,Entrate[Dicembre]) -> € 0.00 | P9: =SUBTOTAL(109,Entrate[Anno]) -> € 10,923.00
A11: Le etichette si trovano nelle celle da C11 a P11. | C11: SPESE | D11: GEN | E11: FEB | F11: MAR | G11: APR | H11: MAG | I11: GIU | J11: LUG | K11: AGO | L11: SET | M11: OTT | N11: NOV | O11: DIC | P11: ANNO
A12: Immettere le spese per la casa nella tabella a partire dalla cella C12. L'istruzione successiva si trova nella cella A20. | C12: CASA | D12: Gennaio | E12: Febbraio | F12: Marzo | G12: Aprile | H12: Mag | I12: Giugno | J12: Luglio | K12: Agosto | L12: Settembre | M12: Ottobre | N12: Novembre | O12: Dicembre | P12: Anno | Q12: Sparkline
C13: Mutuo | D13: € 750.00 | E13: € 750.00 | F13: € 750.00 | P13: =SUM(Casa[[#This Row],[Gennaio]:[Dicembre]]) -> € 2,250.00
C14: Assicurazione | P14: =SUM(Casa[[#This Row],[Gennaio]:[Dicembre]]) -> € 0.00
C15: Riparazioni | F15: € 75.00 | P15: =SUM(Casa[[#This Row],[Gennaio]:[Dicembre]]) -> € 75.00
C16: Servizi | D16: € 35.00 | E16: € 35.00 | F16: € 35.00 | P16: =SUM(Casa[[#This Row],[Gennaio]:[Dicembre]]) -> € 105.00
C17: Utenze | D17: € 165.00 | E17: € 165.00 | F17: € 165.00 | P17: =SUM(Casa[[#This Row],[Gennaio]:[Dicembre]]) -> € 495.00
C18: Totale | D18: =SUBTOTAL(109,Casa[Gennaio]) -> € 950.00 | E18: =SUBTOTAL(109,Casa[Febbraio]) -> € 950.00 | F18: =SUBTOTAL(109,Casa[Marzo]) -> € 1,025.00 | G18: =SUBTOTAL(109,Casa[Aprile]) -> € 0.00 | H18: =SUBTOTAL(109,Casa[Mag]) -> € 0.00 | I18: =SUBTOTAL(109,Casa[Giugno]) -> € 0.00 | J18: =SUBTOTAL(109,Casa[Luglio]) -> € 0.00 | K18: =SUBTOTAL(109,Casa[Agosto]) -> € 0.00 | L18: =SUBTOTAL(109,Casa[Settembre]) -> € 0.00 | M18: =SUBTOTAL(109,Casa[Ottobre]) -> € 0.00 | N18: =SUBTOTAL(109,Casa[Novembre]) -> € 0.00 | O18: =SUBTOTAL(109,Casa[Dicembre]) -> € 0.00 | P18: =SUBTOTAL(109,Casa[Anno]) -> € 2,925.00
A20: Immettere le spese giornaliere nella tabella a partire dalla cella C20. L'istruzione successiva si trova nella cella A29. | C20: ATTIVITÀ QUOTIDIANE | D20: Gennaio | E20: Febbraio | F20: Marzo | G20: Aprile | H20: Mag | I20: Giugno | J20: Luglio | K20: Agosto | L20: Settembre | M20: Ottobre | N20: Novembre | O20: Dicembre | P20: Anno | Q20: Sparkline
C21: Generi alimentari | D21: € 191.00 | E21: € 152.00 | F21: € 145.00 | P21: =SUM(Giornaliere[[#This Row],[Gennaio]:[Dicembre]]) -> € 488.00
C22: Assistenza bambini | D22: € 200.00 | E22: € 200.00 | F22: € 200.00 | P22: =SUM(Giornaliere[[#This Row],[Gennaio]:[Dicembre]]) -> € 600.00
C23: Lavanderia | D23: € 20.00 | F23: € 20.00 | P23: =SUM(Giornaliere[[#This Row],[Gennaio]:[Dicembre]]) -> € 40.00
C24: Cene fuori | D24: € 55.00 | F24: € 56.00 | P24: =SUM(Giornaliere[[#This Row],[Gennaio]:[Dicembre]]) -> € 111.00
C25: Servizio pulizie | D25: € 25.00 | E25: € 17.00 | F25: € 7.00 | P25: =SUM(Giornaliere[[#This Row],[Gennaio]:[Dicembre]]) -> € 49.00
C26: Dog sitter | D26: € 10.00 | E26: € 5.00 | F26: € 7.00 | P26: =SUM(Giornaliere[[#This Row],[Gennaio]:[Dicembre]]) -> € 22.00
C27: Totale | D27: =SUBTOTAL(109,Giornaliere[Gennaio]) -> € 501.00 | E27: =SUBTOTAL(109,Giornaliere[Febbraio]) -> € 374.00 | F27: =SUBTOTAL(109,Giornaliere[Marzo]) -> € 435.00 | G27: =SUBTOTAL(109,Giornaliere[Aprile]) -> € 0.00 | H27: =SUBTOTAL(109,Giornaliere[Mag]) -> € 0.00 | I27: =SUBTOTAL(109,Giornaliere[Giugno]) -> € 0.00 | J27: =SUBTOTAL(109,Giornaliere[Luglio]) -> € 0.00 | K27: =SUBTOTAL(109,Giornaliere[Agosto]) -> € 0.00 | L27: =SUBTOTAL(109,Giornaliere[Settembre]) -> € 0.00 | M27: =SUBTOTAL(109,Giornaliere[Ottobre]) -> € 0.00 | N27: =SUBTOTAL(109,Giornaliere[Novembre]) -> € 0.00 | O27: =SUBTOTAL(109,Giornaliere[Dicembre]) -> € 0.00 | P27: =SUBTOTAL(109,Giornaliere[Anno]) -> € 1,310.00
A29: Immettere le spese per i trasporti nella tabella a partire dalla cella C29. L'istruzione successiva si trova nella cella A38. | C29: TRASPORTI | D29: Gennaio | E29: Febbraio | F29: Marzo | G29: Aprile | H29: Mag | I29: Giugno | J29: Luglio | K29: Agosto | L29: Settembre | M29: Ottobre | N29: Novembre | O29: Dicembre | P29: Anno | Q29: Sparkline
C30: Benzina/carburante | D30: € 195.00 | E30: € 125.00 | F30: € 171.00 | P30: =SUM(Trasporti[[#This Row],[Gennaio]:[Dicembre]]) -> € 491.00
C31: Assicurazione | D31: € 165.00 | E31: € 165.00 | F31: € 165.00 | P31: =SUM(Trasporti[[#This Row],[Gennaio]:[Dicembre]]) -> € 495.00
C32: Riparazioni | P32: =SUM(Trasporti[[#This Row],[Gennaio]:[Dicembre]]) -> € 0.00
C33: Lavaggio auto/servizi annessi | D33: € 10.00 | P33: =SUM(Trasporti[[#This Row],[Gennaio]:[Dicembre]]) -> € 10.00
C34: Parcheggio | D34: € 10.00 | E34: € 40.00 | F34: € 20.00 | P34: =SUM(Trasporti[[#This Row],[Gennaio]:[Dicembre]]) -> € 70.00
C35: Trasporti pubblici | D35: € 20.00 | E35: € 40.00 | F35: € 30.00 | P35: =SUM(Trasporti[[#This Row],[Gennaio]:[Dicembre]]) -> € 90.00
C36: Totale | D36: =SUBTOTAL(109,Trasporti[Gennaio]) -> € 400.00 | E36: =SUBTOTAL(109,Trasporti[Febbraio]) -> € 370.00 | F36: =SUBTOTAL(109,Trasporti[Marzo]) -> € 386.00 | G36: =SUBTOTAL(109,Trasporti[Aprile]) -> € 0.00 | H36: =SUBTOTAL(109,Trasporti[Mag]) -> € 0.00 | I36: =SUBTOTAL(109,Trasporti[Giugno]) -> € 0.00 | J36: =SUBTOTAL(109,Trasporti[Luglio]) -> € 0.00 | K36: =SUBTOTAL(109,Trasporti[Agosto]) -> € 0.00 | L36: =SUBTOTAL(109,Trasporti[Settembre]) -> € 0.00 | M36: =SUBTOTAL(109,Trasporti[Ottobre]) -> € 0.00 | N36: =SUBTOTAL(109,Trasporti[Novembre]) -> € 0.00 | O36: =SUBTOTAL(109,Trasporti[Dicembre]) -> € 0.00 | P36: =SUBTOTAL(109,Trasporti[Anno]) -> € 1,156.00
A38: Immettere le spese di svago nella tabella a partire dalla cella C38. L’istruzione successiva si trova nella cella A45. | C38: SVAGO | D38: Gennaio | E38: Febbraio | F38: Marzo | G38: Aprile | H38: Mag | I38: Giugno | J38: Luglio | K38: Agosto | L38: Settembre | M38: Ottobre | N38: Novembre | O38: Dicembre | P38: Anno | Q38: Sparkline
C39: Pay TV | D39: € 85.00 | E39: € 85.00 | F39: € 85.00 | P39: =SUM(Tempo_libero[[#This Row],[Gennaio]:[Dicembre]]) -> € 255.00
C40: Noleggio video/DVD | D40: € 7.00 | E40: € 8.00 | F40: € 9.00 | P40: =SUM(Tempo_libero[[#This Row],[Gennaio]:[Dicembre]]) -> € 24.00
C41: Cinema/teatro | D41: € 9.00 | E41: € 5.00 | F41: € 9.00 | P41: =SUM(Tempo_libero[[#This Row],[Gennaio]:[Dicembre]]) -> € 23.00
C42: Concerti/discoteche | D42: € 5.00 | E42: € 5.00 | F42: € 7.00 | P42: =SUM(Tempo_libero[[#This Row],[Gennaio]:[Dicembre]]) -> € 17.00
C43: Totale | D43: =SUBTOTAL(109,Tempo_libero[Gennaio]) -> € 106.00 | E43: =SUBTOTAL(109,Tempo_libero[Febbraio]) -> € 103.00 | F43: =SUBTOTAL(109,Tempo_libero[Marzo]) -> € 110.00 | G43: =SUBTOTAL(109,Tempo_libero[Aprile]) -> € 0.00 | H43: =SUBTOTAL(109,Tempo_libero[Mag]) -> € 0.00 | I43: =SUBTOTAL(109,Tempo_libero[Giugno]) -> € 0.00 | J43: =SUBTOTAL(109,Tempo_libero[Luglio]) -> € 0.00 | K43: =SUBTOTAL(109,Tempo_libero[Agosto]) -> € 0.00 | L43: =SUBTOTAL(109,Tempo_libero[Settembre]) -> € 0.00 | M43: =SUBTOTAL(109,Tempo_libero[Ottobre]) -> € 0.00 | N43: =SUBTOTAL(109,Tempo_libero[Novembre]) -> € 0.00 | O43: =SUBTOTAL(109,Tempo_libero[Dicembre]) -> € 0.00 | P43: =SUBTOTAL(109,Tempo_libero[Anno]) -> € 319.00
A45: Immettere le spese per la salute nella tabella a partire dalla cella C45. L'istruzione successiva si trova nella cella A55. | C45: SALUTE | D45: Gennaio | E45: Febbraio | F45: Marzo | G45: Aprile | H45: Mag | I45: Giugno | J45: Luglio | K45: Agosto | L45: Settembre | M45: Ottobre | N45: Novembre | O45: Dicembre | P45: Anno | Q45: Sparkline
C46: Iscrizione palestra | D46: € 50.00 | E46: € 50.00 | F46: € 50.00 | P46: =SUM(Salute[[#This Row],[Gennaio]:[Dicembre]]) -> € 150.00
C47: Assicurazione | D47: € 225.00 | E47: € 225.00 | F47: € 225.00 | P47: =SUM(Salute[[#This Row],[Gennaio]:[Dicembre]]) -> € 675.00
C48: Ricette mediche | D48: € 100.00 | E48: € 100.00 | F48: € 100.00 | P48: =SUM(Salute[[#This Row],[Gennaio]:[Dicembre]]) -> € 300.00
C49: Farmaci da banco | D49: € 6.00 | E49: € 2.00 | F49: € 9.00 | P49: =SUM(Salute[[#This Row],[Gennaio]:[Dicembre]]) -> € 17.00
C50: Ticket sanitari | D50: € 20.00 | F50: € 41.00 | P50: =SUM(Salute[[#This Row],[Gennaio]:[Dicembre]]) -> € 61.00
C51: Veterinario/medicine animali | D51: € 4.00 | F51: € 25.00 | P51: =SUM(Salute[[#This Row],[Gennaio]:[Dicembre]]) -> € 29.00
C52: Assicurazione vita | D52: € 55.00 | E52: € 55.00 | F52: € 55.00 | P52: =SUM(Salute[[#This Row],[Gennaio]:[Dicembre]]) -> € 165.00
C53: Totale | D53: =SUBTOTAL(109,Salute[Gennaio]) -> € 460.00 | E53: =SUBTOTAL(109,Salute[Febbraio]) -> € 432.00 | F53: =SUBTOTAL(109,Salute[Marzo]) -> € 505.00 | G53: =SUBTOTAL(109,Salute[Aprile]) -> € 0.00 | H53: =SUBTOTAL(109,Salute[Mag]) -> € 0.00 | I53: =SUBTOTAL(109,Salute[Giugno]) -> € 0.00 | J53: =SUBTOTAL(109,Salute[Luglio]) -> € 0.00 | K53: =SUBTOTAL(109,Salute[Agosto]) -> € 0.00 | L53: =SUBTOTAL(109,Salute[Settembre]) -> € 0.00 | M53: =SUBTOTAL(109,Salute[Ottobre]) -> € 0.00 | N53: =SUBTOTAL(109,Salute[Novembre]) -> € 0.00 | O53: =SUBTOTAL(109,Salute[Dicembre]) -> € 0.00 | P53: =SUBTOTAL(109,Salute[Anno]) -> € 1,397.00
A55: Immettere le spese per le vacanze nella tabella a partire dalla cella C55. L'istruzione successiva si trova nella cella A64. | C55: VACANZE | D55: Gennaio | E55: Febbraio | F55: Marzo | G55: Aprile | H55: Mag | I55: Giugno | J55: Luglio | K55: Agosto | L55: Settembre | M55: Ottobre | N55: Novembre | O55: Dicembre | P55: Anno | Q55: Sparkline
C56: Biglietti aerei | E56: € 485.00 | P56: =SUM(Vacanze[[#This Row],[Gennaio]:[Dicembre]]) -> € 485.00
C57: Alloggio | E57: € 245.00 | P57: =SUM(Vacanze[[#This Row],[Gennaio]:[Dicembre]]) -> € 245.00
C58: Cibo | E58: € 95.00 | P58: =SUM(Vacanze[[#This Row],[Gennaio]:[Dicembre]]) -> € 95.00
C59: Souvenir | P59: =SUM(Vacanze[[#This Row],[Gennaio]:[Dicembre]]) -> € 0.00
C60: Pensione per animali | P60: =SUM(Vacanze[[#This Row],[Gennaio]:[Dicembre]]) -> € 0.00
C61: Noleggio auto | E61: € 85.00 | P61: =SUM(Vacanze[[#This Row],[Gennaio]:[Dicembre]]) -> € 85.00
C62: Totale | D62: =SUBTOTAL(109,Vacanze[Gennaio]) -> € 0.00 | E62: =SUBTOTAL(109,Vacanze[Febbraio]) -> € 910.00 | F62: =SUBTOTAL(109,Vacanze[Marzo]) -> € 0.00 | G62: =SUBTOTAL(109,Vacanze[Aprile]) -> € 0.00 | H62: =SUBTOTAL(109,Vacanze[Mag]) -> € 0.00 | I62: =SUBTOTAL(109,Vacanze[Giugno]) -> € 0.00 | J62: =SUBTOTAL(109,Vacanze[Luglio]) -> € 0.00 | K62: =SUBTOTAL(109,Vacanze[Agosto]) -> € 0.00 | L62: =SUBTOTAL(109,Vacanze[Settembre]) -> € 0.00 | M62: =SUBTOTAL(109,Vacanze[Ottobre]) -> € 0.00 | N62: =SUBTOTAL(109,Vacanze[Novembre]) -> € 0.00 | O62: =SUBTOTAL(109,Vacanze[Dicembre]) -> € 0.00 | P62: =SUBTOTAL(109,Vacanze[Anno]) -> € 910.00
A64: Immettere le spese per il tempo libero nella tabella a partire dalla cella C64. L'istruzione successiva si trova nella cella A71. | C64: TEMPO LIBERO | D64: Gennaio | E64: Febbraio | F64: Marzo | G64: Aprile | H64: Mag | I64: Giugno | J64: Luglio | K64: Agosto | L64: Settembre | M64: Ottobre | N64: Novembre | O64: Dicembre | P64: Anno | Q64: Sparkline
C65: Quota palestra | P65: =SUM(Svago[[#This Row],[Gennaio]:[Dicembre]]) -> € 0.00
C66: Attrezzature sportive | P66: =SUM(Svago[[#This Row],[Gennaio]:[Dicembre]]) -> € 0.00
C67: Spese associative | P67: =SUM(Svago[[#This Row],[Gennaio]:[Dicembre]]) -> € 0.00
C68: Giocattoli/attrezzature figlio | D68: € 39.00 | E68: € 33.00 | F68: € 40.00 | P68: =SUM(Svago[[#This Row],[Gennaio]:[Dicembre]]) -> € 112.00
C69: Totale | D69: =SUBTOTAL(109,Svago[Gennaio]) -> € 39.00 | E69: =SUBTOTAL(109,Svago[Febbraio]) -> € 33.00 | F69: =SUBTOTAL(109,Svago[Marzo]) -> € 40.00 | G69: =SUBTOTAL(109,Svago[Aprile]) -> € 0.00 | H69: =SUBTOTAL(109,Svago[Mag]) -> € 0.00 | I69: =SUBTOTAL(109,Svago[Giugno]) -> € 0.00 | J69: =SUBTOTAL(109,Svago[Luglio]) -> € 0.00 | K69: =SUBTOTAL(109,Svago[Agosto]) -> € 0.00 | L69: =SUBTOTAL(109,Svago[Settembre]) -> € 0.00 | M69: =SUBTOTAL(109,Svago[Ottobre]) -> € 0.00 | N69: =SUBTOTAL(109,Svago[Novembre]) -> € 0.00 | O69: =SUBTOTAL(109,Svago[Dicembre]) -> € 0.00 | P69: =SUBTOTAL(109,Svago[Anno]) -> € 112.00
A71: Immettere le spese nella tabella Quote e abbonamenti a partire dalla cella C71. L'istruzione successiva si trova nella cella A81. | C71: QUOTE/ABBONAMENTI | D71: Gennaio | E71: Febbraio | F71: Marzo | G71: Aprile | H71: Mag | I71: Giugno | J71: Luglio | K71: Agosto | L71: Settembre | M71: Ottobre | N71: Novembre | O71: Dicembre | P71: Anno | Q71: Sparkline
C72: Riviste | P72: =SUM(QuoteeAbbonamenti[[#This Row],[Gennaio]:[Dicembre]]) -> € 0.00
C73: Giornali | P73: =SUM(QuoteeAbbonamenti[[#This Row],[Gennaio]:[Dicembre]]) -> € 0.00
C74: Connessione Internet | P74: =SUM(QuoteeAbbonamenti[[#This Row],[Gennaio]:[Dicembre]]) -> € 0.00
C75: Radio pubblica | P75: =SUM(QuoteeAbbonamenti[[#This Row],[Gennaio]:[Dicembre]]) -> € 0.00
C76: Televisione pubblica | P76: =SUM(QuoteeAbbonamenti[[#This Row],[Gennaio]:[Dicembre]]) -> € 0.00
C77: Organizzazioni religiose | D77: € 29.00 | E77: € 18.00 | F77: € 17.00 | P77: =SUM(QuoteeAbbonamenti[[#This Row],[Gennaio]:[Dicembre]]) -> € 64.00
C78: Beneficenza | P78: =SUM(QuoteeAbbonamenti[[#This Row],[Gennaio]:[Dicembre]]) -> € 0.00
C79: Totale | D79: =SUBTOTAL(109,QuoteeAbbonamenti[Gennaio]) -> € 29.00 | E79: =SUBTOTAL(109,QuoteeAbbonamenti[Febbraio]) -> € 18.00 | F79: =SUBTOTAL(109,QuoteeAbbonamenti[Marzo]) -> € 17.00 | G79: =SUBTOTAL(109,QuoteeAbbonamenti[Aprile]) -> € 0.00 | H79: =SUBTOTAL(109,QuoteeAbbonamenti[Mag]) -> € 0.00 | I79: =SUBTOTAL(109,QuoteeAbbonamenti[Giugno]) -> € 0.00 | J79: =SUBTOTAL(109,QuoteeAbbonamenti[Luglio]) -> € 0.00 | K79: =SUBTOTAL(109,QuoteeAbbonamenti[Agosto]) -> € 0.00 | L79: =SUBTOTAL(109,QuoteeAbbonamenti[Settembre]) -> € 0.00 | M79: =SUBTOTAL(109,QuoteeAbbonamenti[Ottobre]) -> € 0.00 | N79: =SUBTOTAL(109,QuoteeAbbonamenti[Novembre]) -> € 0.00 | O79: =SUBTOTAL(109,QuoteeAbbonamenti[Dicembre]) -> € 0.00 | P79: =SUBTOTAL(109,QuoteeAbbonamenti[Anno]) -> € 64.00
A81: Immettere le spese personali nella tabella a partire dalla cella C81. L'istruzione successiva si trova nella cella A89. | C81: PERSONALI | D81: Gennaio | E81: Febbraio | F81: Marzo | G81: Aprile | H81: Mag | I81: Giugno | J81: Luglio | K81: Agosto | L81: Settembre | M81: Ottobre | N81: Novembre | O81: Dicembre | P81: Anno | Q81: Sparkline
C82: Abbigliamento | F82: € 29.00 | P82: =SUM(Personale[[#This Row],[Gennaio]:[Dicembre]]) -> € 29.00
C83: Regali | E83: € 35.00 | P83: =SUM(Personale[[#This Row],[Gennaio]:[Dicembre]]) -> € 35.00
C84: Parrucchiere/barbiere | D84: € 25.00 | E84: € 25.00 | F84: € 25.00 | P84: =SUM(Personale[[#This Row],[Gennaio]:[Dicembre]]) -> € 75.00
C85: Libri | P85: =SUM(Personale[[#This Row],[Gennaio]:[Dicembre]]) -> € 0.00
C86: Musica (CD e così via) | P86: =SUM(Personale[[#This Row],[Gennaio]:[Dicembre]]) -> € 0.00
C87: Totale | D87: =SUBTOTAL(109,Personale[Gennaio]) -> € 25.00 | E87: =SUBTOTAL(109,Personale[Febbraio]) -> € 60.00 | F87: =SUBTOTAL(109,Personale[Marzo]) -> € 54.00 | G87: =SUBTOTAL(109,Personale[Aprile]) -> € 0.00 | H87: =SUBTOTAL(109,Personale[Mag]) -> € 0.00 | I87: =SUBTOTAL(109,Personale[Giugno]) -> € 0.00 | J87: =SUBTOTAL(109,Personale[Luglio]) -> € 0.00 | K87: =SUBTOTAL(109,Personale[Agosto]) -> € 0.00 | L87: =SUBTOTAL(109,Personale[Settembre]) -> € 0.00 | M87: =SUBTOTAL(109,Personale[Ottobre]) -> € 0.00 | N87: =SUBTOTAL(109,Personale[Novembre]) -> € 0.00 | O87: =SUBTOTAL(109,Personale[Dicembre]) -> € 0.00 | P87: =SUBTOTAL(109,Personale[Anno]) -> € 139.00
A89: Immettere gli obblighi finanziari nella tabella a partire dalla cella C89. L'istruzione successiva si trova nella cella A97. | C89: OBBLIGHI FINANZIARI | D89: Gennaio | E89: Febbraio | F89: Marzo | G89: Aprile | H89: Mag | I89: Giugno | J89: Luglio | K89: Agosto | L89: Settembre | M89: Ottobre | N89: Novembre | O89: Dicembre | P89: Anno | Q89: Sparkline
C90: Risparmi a lungo termine | D90: € 25.00 | E90: € 25.00 | F90: € 25.00 | P90: =SUM(Finanze[[#This Row],[Gennaio]:[Dicembre]]) -> € 75.00
C91: Fondo pensione | D91: € 45.00 | E91: € 45.00 | F91: € 45.00 | P91: =SUM(Finanze[[#This Row],[Gennaio]:[Dicembre]]) -> € 135.00
C92: Pagamenti con carta di credito | D92: € 75.00 | E92: € 75.00 | F92: € 75.00 | P92: =SUM(Finanze[[#This Row],[Gennaio]:[Dicembre]]) -> € 225.00
C93: Imposte sul reddito (aggiuntive) | P93: =SUM(Finanze[[#This Row],[Gennaio]:[Dicembre]]) -> € 0.00
C94: Altri obblighi | D94: € 32.00 | E94: € 34.00 | F94: € 1.00 | P94: =SUM(Finanze[[#This Row],[Gennaio]:[Dicembre]]) -> € 67.00
C95: Totale | D95: =SUBTOTAL(109,Finanze[Gennaio]) -> € 177.00 | E95: =SUBTOTAL(109,Finanze[Febbraio]) -> € 179.00 | F95: =SUBTOTAL(109,Finanze[Marzo]) -> € 146.00 | G95: =SUBTOTAL(109,Finanze[Aprile]) -> € 0.00 | H95: =SUBTOTAL(109,Finanze[Mag]) -> € 0.00 | I95: =SUBTOTAL(109,Finanze[Giugno]) -> € 0.00 | J95: =SUBTOTAL(109,Finanze[Luglio]) -> € 0.00 | K95: =SUBTOTAL(109,Finanze[Agosto]) -> € 0.00 | L95: =SUBTOTAL(109,Finanze[Settembre]) -> € 0.00 | M95: =SUBTOTAL(109,Finanze[Ottobre]) -> € 0.00 | N95: =SUBTOTAL(109,Finanze[Novembre]) -> € 0.00 | O95: =SUBTOTAL(109,Finanze[Dicembre]) -> € 0.00 | P95: =SUBTOTAL(109,Finanze[Anno]) -> € 502.00
A97: Immettere i pagamenti vari nella tabella a partire dalla cella C97. L'istruzione successiva si trova nella cella A105. | C97: PAGAMENTI VARI | D97: Gennaio | E97: Febbraio | F97: Marzo | G97: Aprile | H97: Maggio | I97: Giugno | J97: Luglio | K97: Agosto | L97: Settembre | M97: Ottobre | N97: Novembre | O97: Dicembre | P97: Anno | Q97: Sparkline
C98: Altro | P98: =SUM(Varie[[#This Row],[Gennaio]:[Dicembre]]) -> € 0.00
C99: Altro | P99: =SUM(Varie[[#This Row],[Gennaio]:[Dicembre]]) -> € 0.00
C100: Altro | P100: =SUM(Varie[[#This Row],[Gennaio]:[Dicembre]]) -> € 0.00
C101: Altro | P101: =SUM(Varie[[#This Row],[Gennaio]:[Dicembre]]) -> € 0.00
C102: Altro | P102: =SUM(Varie[[#This Row],[Gennaio]:[Dicembre]]) -> € 0.00
C103: Totale | D103: =SUBTOTAL(109,Varie[Gennaio]) -> € 0.00 | E103: =SUBTOTAL(109,Varie[Febbraio]) -> € 0.00 | F103: =SUBTOTAL(109,Varie[Marzo]) -> € 0.00 | G103: =SUBTOTAL(109,Varie[Aprile]) -> € 0.00 | H103: =SUBTOTAL(109,Varie[Maggio]) -> € 0.00 | I103: =SUBTOTAL(109,Varie[Giugno]) -> € 0.00 | J103: =SUBTOTAL(109,Varie[Luglio]) -> € 0.00 | K103: =SUBTOTAL(109,Varie[Agosto]) -> € 0.00 | L103: =SUBTOTAL(109,Varie[Settembre]) -> € 0.00 | M103: =SUBTOTAL(109,Varie[Ottobre]) -> € 0.00 | N103: =SUBTOTAL(109,Varie[Novembre]) -> € 0.00 | O103: =SUBTOTAL(109,Varie[Dicembre]) -> € 0.00 | P103: =SUBTOTAL(109,Varie[Anno]) -> € 0.00
A105: I totali vengono calcolati automaticamente nella tabella a partire dalla cella C105. Le totale uscite e l’ammanco o il surplus di cassa vengono calcolati automaticamente per ogni mese e anno intero e i grafici sparkline vengono aggiornati. | C105: TOTALI | D105: GEN | E105: FEB | F105: MAR | G105: APR | H105: MAG | I105: GIU | J105: LUG | K105: AGO | L105: SET | M105: OTT | N105: NOV | O105: DIC | P105: ANNO | Q105: SPARKLINE
C106: Totale uscite | D106: =SUM(Varie[[#Totals],[Gennaio]],Finanze[[#Totals],[Gennaio]],Personale[[#Totals],[Gennaio]],QuoteeAbbonamenti[[#Totals],[Gennaio]],Svago[[#Totals],[Gennaio]],Vacanze[[#Totals],[Gennaio]],Salute[[#Totals],[Gennaio]],Tempo_libero[[#Totals],[Gennaio]],Trasporti[[#Totals],[Gennaio]],Giornaliere[[#Totals],[Gennaio]],Casa[[#Totals],[Gennaio]]) -> € 2,687.00 | E106: =SUM(Varie[[#Totals],[Febbraio]],Finanze[[#Totals],[Febbraio]],Personale[[#Totals],[Febbraio]],QuoteeAbbonamenti[[#Totals],[Febbraio]],Svago[[#Totals],[Febbraio]],Vacanze[[#Totals],[Febbraio]],Salute[[#Totals],[Febbraio]],Tempo_libero[[#Totals],[Febbraio]],Trasporti[[#Totals],[Febbraio]],Giornaliere[[#Totals],[Febbraio]],Casa[[#Totals],[Febbraio]]) -> € 3,429.00 | F106: =SUM(Varie[[#Totals],[Marzo]],Finanze[[#Totals],[Marzo]],Personale[[#Totals],[Marzo]],QuoteeAbbonamenti[[#Totals],[Marzo]],Svago[[#Totals],[Marzo]],Vacanze[[#Totals],[Marzo]],Salute[[#Totals],[Marzo]],Tempo_libero[[#Totals],[Marzo]],Trasporti[[#Totals],[Marzo]],Giornaliere[[#Totals],[Marzo]],Casa[[#Totals],[Marzo]]) -> € 2,718.00 | G106: =SUM(Varie[[#Totals],[Aprile]],Finanze[[#Totals],[Aprile]],Personale[[#Totals],[Aprile]],QuoteeAbbonamenti[[#Totals],[Aprile]],Svago[[#Totals],[Aprile]],Vacanze[[#Totals],[Aprile]],Salute[[#Totals],[Aprile]],Tempo_libero[[#Totals],[Aprile]],Trasporti[[#Totals],[Aprile]],Giornaliere[[#Totals],[Aprile]],Casa[[#Totals],[Aprile]]) -> € 0.00 | H106: =SUM(Varie[[#Totals],[Maggio]],Finanze[[#Totals],[Mag]],Personale[[#Totals],[Mag]],QuoteeAbbonamenti[[#Totals],[Mag]],Svago[[#Totals],[Mag]],Vacanze[[#Totals],[Mag]],Salute[[#Totals],[Mag]],Tempo_libero[[#Totals],[Mag]],Trasporti[[#Totals],[Mag]],Giornaliere[[#Totals],[Mag]],Casa[[#Totals],[Mag]]) -> € 0.00 | I106: =SUM(Varie[[#Totals],[Giugno]],Finanze[[#Totals],[Giugno]],Personale[[#Totals],[Giugno]],QuoteeAbbonamenti[[#Totals],[Giugno]],Svago[[#Totals],[Giugno]],Vacanze[[#Totals],[Giugno]],Salute[[#Totals],[Giugno]],Tempo_libero[[#Totals],[Giugno]],Trasporti[[#Totals],[Giugno]],Giornaliere[[#Totals],[Giugno]],Casa[[#Totals],[Giugno]]) -> € 0.00 | J106: =SUM(Varie[[#Totals],[Luglio]],Finanze[[#Totals],[Luglio]],Personale[[#Totals],[Luglio]],QuoteeAbbonamenti[[#Totals],[Luglio]],Svago[[#Totals],[Luglio]],Vacanze[[#Totals],[Luglio]],Salute[[#Totals],[Luglio]],Tempo_libero[[#Totals],[Luglio]],Trasporti[[#Totals],[Luglio]],Giornaliere[[#Totals],[Luglio]],Casa[[#Totals],[Luglio]]) -> € 0.00 | K106: =SUM(Varie[[#Totals],[Agosto]],Finanze[[#Totals],[Agosto]],Personale[[#Totals],[Agosto]],QuoteeAbbonamenti[[#Totals],[Agosto]],Svago[[#Totals],[Agosto]],Vacanze[[#Totals],[Agosto]],Salute[[#Totals],[Agosto]],Tempo_libero[[#Totals],[Agosto]],Trasporti[[#Totals],[Agosto]],Giornaliere[[#Totals],[Agosto]],Casa[[#Totals],[Agosto]]) -> € 0.00 | L106: =SUM(Varie[[#Totals],[Settembre]],Finanze[[#Totals],[Settembre]],Personale[[#Totals],[Settembre]],QuoteeAbbonamenti[[#Totals],[Settembre]],Svago[[#Totals],[Settembre]],Vacanze[[#Totals],[Settembre]],Salute[[#Totals],[Settembre]],Tempo_libero[[#Totals],[Settembre]],Trasporti[[#Totals],[Settembre]],Giornaliere[[#Totals],[Settembre]],Casa[[#Totals],[Settembre]]) -> € 0.00 | M106: =SUM(Varie[[#Totals],[Ottobre]],Finanze[[#Totals],[Ottobre]],Personale[[#Totals],[Ottobre]],QuoteeAbbonamenti[[#Totals],[Ottobre]],Svago[[#Totals],[Ottobre]],Vacanze[[#Totals],[Ottobre]],Salute[[#Totals],[Ottobre]],Tempo_libero[[#Totals],[Ottobre]],Trasporti[[#Totals],[Ottobre]],Giornaliere[[#Totals],[Ottobre]],Casa[[#Totals],[Ottobre]]) -> € 0.00 | N106: =SUM(Varie[[#Totals],[Novembre]],Finanze[[#Totals],[Novembre]],Personale[[#Totals],[Novembre]],QuoteeAbbonamenti[[#Totals],[Novembre]],Svago[[#Totals],[Novembre]],Vacanze[[#Totals],[Novembre]],Salute[[#Totals],[Novembre]],Tempo_libero[[#Totals],[Novembre]],Trasporti[[#Totals],[Novembre]],Giornaliere[[#Totals],[Novembre]],Casa[[#Totals],[Novembre]]) -> € 0.00 | O106: =SUM(Varie[[#Totals],[Dicembre]],Finanze[[#Totals],[Dicembre]],Personale[[#Totals],[Dicembre]],QuoteeAbbonamenti[[#Totals],[Dicembre]],Svago[[#Totals],[Dicembre]],Vacanze[[#Totals],[Dicembre]],Salute[[#Totals],[Dicembre]],Tempo_libero[[#Totals],[Dicembre]],Trasporti[[#Totals],[Dicembre]],Giornaliere[[#Totals],[Dicembre]],Casa[[#Totals],[Dicembre]]) -> € 0.00 | P106: =SUM(Varie[[#Totals],[Anno]],Finanze[[#Totals],[Anno]],Personale[[#Totals],[Anno]],QuoteeAbbonamenti[[#Totals],[Anno]],Svago[[#Totals],[Anno]],Vacanze[[#Totals],[Anno]],Salute[[#Totals],[Anno]],Tempo_libero[[#Totals],[Anno]],Trasporti[[#Totals],[Anno]],Giornaliere[[#Totals],[Anno]],Casa[[#Totals],[Anno]]) -> € 8,834.00
C107: Ammanco/Surplus di cassa | D107: =Entrate[[#Totals],[Gennaio]]-D106 -> € 1,036.00 | E107: =Entrate[[#Totals],[Febbraio]]-E106 -> € 127.00 | F107: =Entrate[[#Totals],[Marzo]]-F106 -> € 926.00 | G107: =Entrate[[#Totals],[Aprile]]-G106 -> € 0.00 | H107: =Entrate[[#Totals],[Maggio]]-H106 -> € 0.00 | I107: =Entrate[[#Totals],[Giugno]]-I106 -> € 0.00 | J107: =Entrate[[#Totals],[Luglio]]-J106 -> € 0.00 | K107: =Entrate[[#Totals],[Agosto]]-K106 -> € 0.00 | L107: =Entrate[[#Totals],[Settembre]]-L106 -> € 0.00 | M107: =Entrate[[#Totals],[Ottobre]]-M106 -> € 0.00 | N107: =Entrate[[#Totals],[Novembre]]-N106 -> € 0.00 | O107: =Entrate[[#Totals],[Dicembre]]-O106 -> € 0.00 | P107: =Entrate[[#Totals],[Anno]]-P106 -> € 2,089.00
